[Event "Late-Titled-Tuesday-Blitz-September-05-2023"]
[Site "Chess.com"]
[Date "2023.09.05"]
[Round "10"]
[White "MajorCoast"]
[Black "Sinquefield"]
[Result "1-0"]
[WhiteElo "2302"]
[BlackElo "2438"]
[TimeControl "180+1"]
[EndTime "15:55:53 PDT"]
[Termination "MajorCoast won on time"]

1. d4 {[%clk 0:03:00.9]} 1... Nf6 {[%clk 0:02:49.7]} 2. Nf3 {[%clk 0:03:01]}
2... d6 {[%clk 0:02:50.3]} 3. Nc3 {[%clk 0:03:00.2]} 3... Nbd7 {[%clk
0:02:50.9]} 4. e4 {[%clk 0:03:00.3]} 4... e5 {[%clk 0:02:51.8]} 5. Bc4 {[%clk
0:03:00.3]} 5... Be7 {[%clk 0:02:52.1]} 6. a4 {[%clk 0:03:00.4]} 6... c6 {[%clk
0:02:51.5]} 7. O-O {[%clk 0:03:00.2]} 7... O-O {[%clk 0:02:52.1]} 8. h3 {[%clk
0:02:59.6]} 8... b6 {[%clk 0:02:52.4]} 9. Be3 {[%clk 0:02:59.2]} 9... a6 {[%clk
0:02:52.5]} 10. Re1 {[%clk 0:02:59.3]} 10... Rb8 {[%clk 0:02:52.1]} 11. Qd2
{[%clk 0:02:58.1]} 11... b5 {[%clk 0:02:51.5]} 12. Bd3 {[%clk 0:02:47.6]} 12...
b4 {[%clk 0:02:42.3]} 13. Ne2 {[%clk 0:02:47.2]} 13... a5 {[%clk 0:02:39.8]} 14.
Ng3 {[%clk 0:02:42.8]} 14... Re8 {[%clk 0:02:37.7]} 15. Bc4 {[%clk 0:02:32.7]}
15... Qc7 {[%clk 0:02:22.5]} 16. Nf5 {[%clk 0:02:08.1]} 16... Bf8 {[%clk
0:02:19.1]} 17. Ng5 {[%clk 0:02:05.3]} 17... d5 {[%clk 0:02:15.7]} 18. exd5
{[%clk 0:01:44.6]} 18... cxd5 {[%clk 0:02:16.6]} 19. Bb5 {[%clk 0:01:25.9]}
19... e4 {[%clk 0:02:12.7]} 20. Bf4 {[%clk 0:01:22.6]} 20... Qb7 {[%clk
0:02:12.2]} 21. Bxb8 {[%clk 0:01:21.7]} 21... Qxb8 {[%clk 0:02:13.1]} 22. c3
{[%clk 0:01:13.5]} 22... g6 {[%clk 0:02:03.5]} 23. Ne3 {[%clk 0:01:08.8]} 23...
Qf4 {[%clk 0:01:53.7]} 24. Nf1 {[%clk 0:00:49.5]} 24... Qxd2 {[%clk 0:01:31.1]}
25. Nxd2 {[%clk 0:00:50.4]} 25... h6 {[%clk 0:01:31]} 26. Nxf7 {[%clk
0:00:45.3]} 26... Kxf7 {[%clk 0:01:29.9]} 27. Nf1 {[%clk 0:00:41.2]} 27... Bd6
{[%clk 0:01:08.1]} 28. Ne3 {[%clk 0:00:39.8]} 28... Rd8 {[%clk 0:00:38.1]} 29.
Red1 {[%clk 0:00:38.5]} 29... Nb6 {[%clk 0:00:34.8]} 30. Rac1 {[%clk 0:00:35.5]}
30... Be6 {[%clk 0:00:33.8]} 31. Rc2 {[%clk 0:00:18.8]} 31... b3 {[%clk
0:00:32.3]} 32. Rcc1 {[%clk 0:00:18.4]} 32... Nc4 {[%clk 0:00:32.9]} 33. Bxc4
{[%clk 0:00:15.9]} 33... dxc4 {[%clk 0:00:33.2]} 34. d5 {[%clk 0:00:16]} 34...
Nxd5 {[%clk 0:00:30.5]} 35. Nxc4 {[%clk 0:00:13.2]} 35... Bf4 {[%clk 0:00:16.3]}
36. Ra1 {[%clk 0:00:10.9]} 36... Ra8 {[%clk 0:00:12.6]} 37. g3 {[%clk
0:00:09.5]} 37... Bc7 {[%clk 0:00:07.6]} 38. Kg2 {[%clk 0:00:09]} 38... Nxc3
{[%clk 0:00:06.8]} 39. bxc3 {[%clk 0:00:07.9]} 39... Bxc4 {[%clk 0:00:07.2]} 40.
Rd7+ {[%clk 0:00:08.1]} 40... Ke6 {[%clk 0:00:05.7]} 41. Rxc7 {[%clk 0:00:09]}
41... b2 {[%clk 0:00:05.9]} 42. Rb1 {[%clk 0:00:08.6]} 42... Bd5 {[%clk
0:00:03.8]} 43. Rxb2 {[%clk 0:00:08.4]} 43... e3+ {[%clk 0:00:04.3]} 44. Kf1
{[%clk 0:00:07]} 44... Kd6 {[%clk 0:00:04.2]} 45. Rg7 {[%clk 0:00:06.5]} 45...
Bc4+ {[%clk 0:00:04]} 46. Ke1 {[%clk 0:00:06.1]} 46... e2 {[%clk 0:00:04.6]} 47.
Rxg6+ {[%clk 0:00:05.7]} 47... Kc5 {[%clk 0:00:04.3]} 48. Rxe2 {[%clk
0:00:05.7]} 48... Bxe2 {[%clk 0:00:03.2]} 49. Kxe2 {[%clk 0:00:06.6]} 49... Kc4
{[%clk 0:00:03.8]} 50. Rxh6 {[%clk 0:00:06.1]} 50... Kxc3 {[%clk 0:00:04.4]} 51.
Rh5 {[%clk 0:00:05.8]} 51... Kb3 {[%clk 0:00:04.1]} 52. Rh4 {[%clk 0:00:05]}
52... Rb8 {[%clk 0:00:03.2]} 53. Re4 {[%clk 0:00:03]} 53... Rb4 {[%clk
0:00:03.3]} 54. Ke3 {[%clk 0:00:01.6]} 54... Kxa4 {[%clk 0:00:02.2]} 55. f4
{[%clk 0:00:01.7]} 1-0

[Event "Late-Titled-Tuesday-Blitz-September-05-2023"]
[Site "Chess.com"]
[Date "2023.09.05"]
[Round "10"]
[White "temus_galaktionov"]
[Black "Sibelephant"]
[Result "0-1"]
[WhiteElo "2835"]
[BlackElo "3098"]
[TimeControl "180+1"]
[EndTime "15:55:57 PDT"]
[Termination "Sibelephant won by resignation"]

1. d4 {[%clk 0:03:00.9]} 1... Nf6 {[%clk 0:02:59.6]} 2. Nf3 {[%clk 0:03:00.6]}
2... g6 {[%clk 0:02:59.8]} 3. c4 {[%clk 0:03:00.7]} 3... Bg7 {[%clk 0:02:59.9]}
4. Nc3 {[%clk 0:03:01.3]} 4... d5 {[%clk 0:03:00]} 5. cxd5 {[%clk 0:03:02.2]}
5... Nxd5 {[%clk 0:03:00.2]} 6. e4 {[%clk 0:03:02.9]} 6... Nb6 {[%clk
0:03:00.2]} 7. Be3 {[%clk 0:03:02.3]} 7... Bg4 {[%clk 0:02:59.6]} 8. Be2 {[%clk
0:03:02]} 8... O-O {[%clk 0:02:57.8]} 9. O-O {[%clk 0:02:55.1]} 9... Nc6 {[%clk
0:02:57]} 10. d5 {[%clk 0:02:54.5]} 10... Bxf3 {[%clk 0:02:56.1]} 11. gxf3
{[%clk 0:02:55.4]} 11... Ne5 {[%clk 0:02:51.4]} 12. Bd4 {[%clk 0:02:54.7]} 12...
c6 {[%clk 0:02:47]} 13. f4 {[%clk 0:02:51.4]} 13... Ned7 {[%clk 0:02:47]} 14.
Bxg7 {[%clk 0:02:49.7]} 14... Kxg7 {[%clk 0:02:47.3]} 15. dxc6 {[%clk 0:02:47]}
15... bxc6 {[%clk 0:02:46.6]} 16. e5 {[%clk 0:02:46.3]} 16... Nc5 {[%clk
0:02:42.9]} 17. Bf3 {[%clk 0:02:38.2]} 17... Nd3 {[%clk 0:02:36.6]} 18. Bxc6
{[%clk 0:01:54.6]} 18... Rc8 {[%clk 0:02:34.9]} 19. Qf3 {[%clk 0:01:54.6]} 19...
Nxf4 {[%clk 0:02:22.8]} 20. Rad1 {[%clk 0:01:44.6]} 20... Qc7 {[%clk 0:02:22.5]}
21. Qxf4 {[%clk 0:01:37.1]} 21... Qxc6 {[%clk 0:02:22.4]} 22. Rd4 {[%clk
0:01:29.7]} 22... Qe6 {[%clk 0:02:07.6]} 23. Rfd1 {[%clk 0:01:17.4]} 23... Rc5
{[%clk 0:01:58.2]} 24. Re1 {[%clk 0:01:12.8]} 24... Nc4 {[%clk 0:01:49.6]} 25.
b3 {[%clk 0:01:12.6]} 25... Nxe5 {[%clk 0:01:43.7]} 26. Re3 {[%clk 0:00:52.9]}
26... Rfc8 {[%clk 0:01:38.5]} 27. Ne4 {[%clk 0:00:20]} 27... Rc1+ {[%clk
0:01:30.2]} 28. Kg2 {[%clk 0:00:20.3]} 28... f6 {[%clk 0:01:30.6]} 29. Nd2
{[%clk 0:00:07.9]} 29... Qc6+ {[%clk 0:01:01.6]} 30. Nf3 {[%clk 0:00:07.2]}
30... Rc7 {[%clk 0:00:46.7]} 31. Qe4 {[%clk 0:00:05.3]} 31... Nxf3 {[%clk
0:00:37.2]} 32. Qxc6 {[%clk 0:00:04.5]} 32... Nh4+ {[%clk 0:00:33.3]} 33. Rxh4
{[%clk 0:00:04.2]} 33... R1xc6 {[%clk 0:00:33.6]} 34. Rhe4 {[%clk 0:00:02.7]}
34... e5 {[%clk 0:00:33.7]} 35. f4 {[%clk 0:00:03.1]} 35... exf4 {[%clk
0:00:28.4]} 36. Rxf4 {[%clk 0:00:04]} 36... Rc2+ {[%clk 0:00:28.5]} 37. Rf2
{[%clk 0:00:04.1]} 37... Rxf2+ {[%clk 0:00:29.2]} 38. Kxf2 {[%clk 0:00:05]}
38... Rc2+ {[%clk 0:00:29.5]} 39. Re2 {[%clk 0:00:05.7]} 39... Rxe2+ {[%clk
0:00:29.7]} 40. Kxe2 {[%clk 0:00:06.6]} 40... Kf7 {[%clk 0:00:30]} 41. Ke3
{[%clk 0:00:07.2]} 41... Ke6 {[%clk 0:00:30.4]} 42. Kd4 {[%clk 0:00:07.5]} 42...
Kd6 {[%clk 0:00:30.8]} 43. b4 {[%clk 0:00:07.6]} 43... a6 {[%clk 0:00:27]} 44.
a4 {[%clk 0:00:08.1]} 44... Kc6 {[%clk 0:00:27.1]} 45. Ke4 {[%clk 0:00:08]}
45... Kd6 {[%clk 0:00:22.2]} 46. Kd4 {[%clk 0:00:08.1]} 46... g5 {[%clk
0:00:19.3]} 47. Ke4 {[%clk 0:00:07.7]} 47... Ke6 {[%clk 0:00:19.3]} 48. b5
{[%clk 0:00:07.7]} 48... axb5 {[%clk 0:00:17.3]} 49. axb5 {[%clk 0:00:04.5]}
49... f5+ {[%clk 0:00:17.5]} 50. Kd4 {[%clk 0:00:05.1]} 50... Kd6 {[%clk
0:00:18]} 51. h3 {[%clk 0:00:02.8]} 51... h5 {[%clk 0:00:13.4]} 52. b6 {[%clk
0:00:02.8]} 52... Kc6 {[%clk 0:00:13.4]} 53. Ke5 {[%clk 0:00:03.7]} 53... g4
{[%clk 0:00:12.1]} 54. hxg4 {[%clk 0:00:01.9]} 54... fxg4 {[%clk 0:00:12.3]} 55.
Kf4 {[%clk 0:00:02.8]} 55... Kxb6 {[%clk 0:00:12.7]} 56. Kg3 {[%clk 0:00:03.4]}
56... Kc5 {[%clk 0:00:13.6]} 57. Kh4 {[%clk 0:00:03.7]} 57... Kd4 {[%clk
0:00:14.5]} 58. Kg3 {[%clk 0:00:04.6]} 58... Ke4 {[%clk 0:00:14.6]} 59. Kh4
{[%clk 0:00:05.5]} 59... Kf3 {[%clk 0:00:14.7]} 60. Kxh5 {[%clk 0:00:05.7]}
60... g3 {[%clk 0:00:15.6]} 61. Kh4 {[%clk 0:00:06.6]} 61... g2 {[%clk
0:00:16.5]} 62. Kh5 {[%clk 0:00:06.2]} 62... g1=Q {[%clk 0:00:16.3]} 63. Kh6
{[%clk 0:00:07.1]} 63... Kf4 {[%clk 0:00:16.6]} 64. Kh7 {[%clk 0:00:08]} 64...
Kf5 {[%clk 0:00:17.1]} 65. Kh8 {[%clk 0:00:08.9]} 65... Kf6 {[%clk 0:00:17]} 0-1

[Event "Late-Titled-Tuesday-Blitz-September-05-2023"]
[Site "Chess.com"]
[Date "2023.09.05"]
[Round "10"]
[White "Quattroporte300"]
[Black "dosto07"]
[Result "1/2-1/2"]
[WhiteElo "2391"]
[BlackElo "2494"]
[TimeControl "180+1"]
[EndTime "15:56:12 PDT"]
[Termination "Game drawn - insufficient material"]

1. e4 {[%clk 0:02:59.4]} 1... e5 {[%clk 0:03:00.3]} 2. Nf3 {[%clk 0:02:58.4]}
2... Nc6 {[%clk 0:03:00.7]} 3. Bc4 {[%clk 0:02:58.7]} 3... Bc5 {[%clk
0:03:00.4]} 4. c3 {[%clk 0:02:58.6]} 4... Nf6 {[%clk 0:03:00.7]} 5. d3 {[%clk
0:02:58.4]} 5... d6 {[%clk 0:03:01]} 6. O-O {[%clk 0:02:58.3]} 6... a6 {[%clk
0:03:01.2]} 7. Bb3 {[%clk 0:02:57.8]} 7... Ba7 {[%clk 0:03:01.3]} 8. Nbd2 {[%clk
0:02:57.7]} 8... O-O {[%clk 0:03:00.8]} 9. h3 {[%clk 0:02:57.2]} 9... Be6 {[%clk
0:03:00.7]} 10. Re1 {[%clk 0:02:57.3]} 10... Re8 {[%clk 0:02:59.8]} 11. Nf1
{[%clk 0:02:57.6]} 11... h6 {[%clk 0:02:59.3]} 12. Ng3 {[%clk 0:02:56.5]} 12...
d5 {[%clk 0:02:57.4]} 13. exd5 {[%clk 0:02:53.5]} 13... Bxd5 {[%clk 0:02:57.1]}
14. Be3 {[%clk 0:02:44.8]} 14... Qd7 {[%clk 0:02:46]} 15. Qe2 {[%clk 0:02:38]}
15... Bxe3 {[%clk 0:02:42.4]} 16. Qxe3 {[%clk 0:02:33]} 16... Rad8 {[%clk
0:02:41.3]} 17. Ne4 {[%clk 0:02:24.5]} 17... Nxe4 {[%clk 0:02:38.7]} 18. dxe4
{[%clk 0:02:24.3]} 18... Bxb3 {[%clk 0:02:38.3]} 19. axb3 {[%clk 0:02:23.6]}
19... Qd3 {[%clk 0:02:33.7]} 20. b4 {[%clk 0:02:20.8]} 20... Qxe3 {[%clk
0:02:30.1]} 21. Rxe3 {[%clk 0:02:20.3]} 21... Rd6 {[%clk 0:02:27.7]} 22. Kf1
{[%clk 0:02:19.6]} 22... Red8 {[%clk 0:02:27.5]} 23. Ree1 {[%clk 0:02:07.6]}
23... Kf8 {[%clk 0:02:26.7]} 24. Ke2 {[%clk 0:02:07]} 24... Ke7 {[%clk
0:02:26.2]} 25. Red1 {[%clk 0:02:07.1]} 25... Rxd1 {[%clk 0:02:21.9]} 26. Rxd1
{[%clk 0:02:06.7]} 26... Rxd1 {[%clk 0:02:22.6]} 27. Kxd1 {[%clk 0:02:06.8]}
27... Ke6 {[%clk 0:02:23.5]} 28. Kd2 {[%clk 0:02:05.4]} 28... g6 {[%clk
0:02:19.7]} 29. Kd3 {[%clk 0:02:01.5]} 29... f5 {[%clk 0:02:19.6]} 30. Nh4
{[%clk 0:01:58.4]} 30... Ne7 {[%clk 0:02:18.7]} 31. exf5+ {[%clk 0:01:52.1]}
31... gxf5 {[%clk 0:02:18.2]} 32. g3 {[%clk 0:01:38.1]} 32... Nd5 {[%clk
0:02:14.9]} 33. Ng2 {[%clk 0:01:35.4]} 33... Nf6 {[%clk 0:02:10.8]} 34. Ke3
{[%clk 0:01:22.2]} 34... Kd5 {[%clk 0:02:07.2]} 35. Nh4 {[%clk 0:01:21.5]} 35...
Ke6 {[%clk 0:02:03.2]} 36. Ng6 {[%clk 0:01:19.7]} 36... Nd5+ {[%clk 0:02:00.5]}
37. Ke2 {[%clk 0:01:16.3]} 37... Nb6 {[%clk 0:01:53.3]} 38. b3 {[%clk
0:01:10.4]} 38... Nd7 {[%clk 0:01:50.7]} 39. Nh4 {[%clk 0:01:07.1]} 39... Nf6
{[%clk 0:01:46.5]} 40. Nf3 {[%clk 0:01:05.6]} 40... Ne4 {[%clk 0:01:45]} 41. c4
{[%clk 0:01:03.9]} 41... Kd6 {[%clk 0:01:38.6]} 42. Nh4 {[%clk 0:01:01.7]} 42...
Ke6 {[%clk 0:01:38.5]} 43. Nf3 {[%clk 0:01:01.5]} 43... b6 {[%clk 0:01:36.4]}
44. Ne1 {[%clk 0:01:00.8]} 44... Nd6 {[%clk 0:01:31.9]} 45. Nd3 {[%clk
0:00:57.1]} 45... Ne4 {[%clk 0:01:30.5]} 46. h4 {[%clk 0:00:39.7]} 46... Nf6
{[%clk 0:01:28.1]} 47. f3 {[%clk 0:00:36.6]} 47... Nd7 {[%clk 0:01:23.9]} 48.
Ke3 {[%clk 0:00:34.9]} 48... Nb8 {[%clk 0:01:23.3]} 49. g4 {[%clk 0:00:26.3]}
49... Nc6 {[%clk 0:01:18]} 50. g5 {[%clk 0:00:23.1]} 50... hxg5 {[%clk
0:01:17.6]} 51. hxg5 {[%clk 0:00:23.2]} 51... Ne7 {[%clk 0:01:07.9]} 52. f4
{[%clk 0:00:21.7]} 52... exf4+ {[%clk 0:01:02]} 53. Nxf4+ {[%clk 0:00:18.9]}
53... Ke5 {[%clk 0:01:02]} 54. Nd3+ {[%clk 0:00:19.2]} 54... Ke6 {[%clk
0:00:59.6]} 55. Nf4+ {[%clk 0:00:18.9]} 55... Kf7 {[%clk 0:00:59.8]} 56. Kd4
{[%clk 0:00:17.8]} 56... Nc6+ {[%clk 0:00:59.1]} 57. Kc3 {[%clk 0:00:17.9]}
57... Ne5 {[%clk 0:00:59.4]} 58. c5 {[%clk 0:00:17.3]} 58... b5 {[%clk 0:00:57]}
59. Nd5 {[%clk 0:00:12.9]} 59... Kg6 {[%clk 0:00:48.4]} 60. Nxc7 {[%clk
0:00:12.2]} 60... Kxg5 {[%clk 0:00:48.6]} 61. Kd4 {[%clk 0:00:11]} 61... Nc6+
{[%clk 0:00:47.7]} 62. Kd5 {[%clk 0:00:10.2]} 62... Nxb4+ {[%clk 0:00:47.6]} 63.
Kd6 {[%clk 0:00:10.7]} 63... f4 {[%clk 0:00:47.5]} 64. Ne6+ {[%clk 0:00:10.5]}
64... Kg4 {[%clk 0:00:47.8]} 65. c6 {[%clk 0:00:08.4]} 65... Nxc6 {[%clk
0:00:40.4]} 66. Nxf4 {[%clk 0:00:08.2]} 66... Nd4 {[%clk 0:00:39.5]} 67. Nd5
{[%clk 0:00:06.2]} 67... Nxb3 {[%clk 0:00:39.2]} 68. Nc7 {[%clk 0:00:06.7]}
68... a5 {[%clk 0:00:19.9]} 69. Nxb5 {[%clk 0:00:06.9]} 69... a4 {[%clk
0:00:20.6]} 70. Kd5 {[%clk 0:00:06.4]} 70... Kf3 {[%clk 0:00:20.7]} 71. Kc4
{[%clk 0:00:06.5]} 71... Ke2 {[%clk 0:00:20]} 72. Kb4 {[%clk 0:00:06.6]} 72...
Nd2 {[%clk 0:00:19.1]} 73. Kxa4 {[%clk 0:00:06.4]} 1/2-1/2

[Event "Late-Titled-Tuesday-Blitz-September-05-2023"]
[Site "Chess.com"]
[Date "2023.09.05"]
[Round "10"]
[White "DefiantChair"]
[Black "Sjakkerntobi"]
[Result "1-0"]
[WhiteElo "2643"]
[BlackElo "2474"]
[TimeControl "180+1"]
[EndTime "15:56:25 PDT"]
[Termination "DefiantChair won by checkmate"]

1. e4 {[%clk 0:03:00.9]} 1... e6 {[%clk 0:02:59.4]} 2. d4 {[%clk 0:03:01.5]}
2... d5 {[%clk 0:03:00.1]} 3. Nd2 {[%clk 0:03:02.2]} 3... a6 {[%clk 0:03:00.2]}
4. c3 {[%clk 0:02:58.9]} 4... c5 {[%clk 0:02:59.5]} 5. exd5 {[%clk 0:02:57.9]}
5... exd5 {[%clk 0:02:59.9]} 6. Ngf3 {[%clk 0:02:57.7]} 6... Nf6 {[%clk
0:03:00.2]} 7. Be2 {[%clk 0:02:55.9]} 7... Be7 {[%clk 0:03:00.1]} 8. dxc5 {[%clk
0:02:55.9]} 8... Bxc5 {[%clk 0:03:01]} 9. O-O {[%clk 0:02:56.3]} 9... O-O {[%clk
0:03:01]} 10. Nb3 {[%clk 0:02:56.8]} 10... Bb6 {[%clk 0:03:01.3]} 11. Bf4 {[%clk
0:02:56.5]} 11... Nc6 {[%clk 0:03:01.5]} 12. Nbd4 {[%clk 0:02:56.5]} 12... Ne4
{[%clk 0:02:59]} 13. Be3 {[%clk 0:02:45.3]} 13... Qf6 {[%clk 0:02:51.3]} 14. Re1
{[%clk 0:02:26.8]} 14... Bc7 {[%clk 0:02:50.4]} 15. g3 {[%clk 0:02:01.8]} 15...
Bg4 {[%clk 0:02:38.5]} 16. Nxc6 {[%clk 0:01:53.1]} 16... bxc6 {[%clk 0:02:37.7]}
17. Nd4 {[%clk 0:01:53.3]} 17... Bd7 {[%clk 0:02:24.5]} 18. Bf3 {[%clk
0:01:45.9]} 18... Rfe8 {[%clk 0:02:23.2]} 19. Bg2 {[%clk 0:01:45.4]} 19... Rab8
{[%clk 0:02:17.4]} 20. Nb3 {[%clk 0:01:44.9]} 20... a5 {[%clk 0:02:14.3]} 21.
Qc2 {[%clk 0:01:39.2]} 21... Bf5 {[%clk 0:02:12.3]} 22. Qc1 {[%clk 0:01:38.1]}
22... a4 {[%clk 0:02:12.2]} 23. Nd4 {[%clk 0:01:38]} 23... Bd7 {[%clk
0:02:10.4]} 24. a3 {[%clk 0:01:32.4]} 24... c5 {[%clk 0:01:56.5]} 25. Nf3 {[%clk
0:01:27.2]} 25... Bd6 {[%clk 0:01:34.6]} 26. Nd2 {[%clk 0:01:26.2]} 26... Bc6
{[%clk 0:01:30.6]} 27. Nxe4 {[%clk 0:01:21.5]} 27... dxe4 {[%clk 0:01:31.5]} 28.
Qc2 {[%clk 0:01:19.5]} 28... Bf8 {[%clk 0:01:03.5]} 29. Rad1 {[%clk 0:01:16.1]}
29... Rb3 {[%clk 0:01:01.1]} 30. Rd2 {[%clk 0:01:14.6]} 30... Qe6 {[%clk
0:00:55.7]} 31. Red1 {[%clk 0:01:14.4]} 31... Be7 {[%clk 0:00:53.2]} 32. h4
{[%clk 0:01:07.5]} 32... h6 {[%clk 0:00:52.5]} 33. Bf4 {[%clk 0:01:05]} 33... f5
{[%clk 0:00:48.3]} 34. h5 {[%clk 0:00:51.6]} 34... Bb5 {[%clk 0:00:21]} 35. Bd6
{[%clk 0:00:45.1]} 35... Bd3 {[%clk 0:00:18.8]} 36. Rxd3 {[%clk 0:00:44]} 36...
exd3 {[%clk 0:00:19.7]} 37. Rxd3 {[%clk 0:00:42.4]} 37... Bxd6 {[%clk
0:00:19.7]} 38. Bd5 {[%clk 0:00:41.3]} 38... Qxd5 {[%clk 0:00:17.3]} 39. Rxd5
{[%clk 0:00:42.2]} 39... Bf8 {[%clk 0:00:17.1]} 40. Qxf5 {[%clk 0:00:40.3]}
40... Rxb2 {[%clk 0:00:17.6]} 41. Rd7 {[%clk 0:00:39.6]} 41... Reb8 {[%clk
0:00:14.8]} 42. Qd5+ {[%clk 0:00:36.7]} 42... Kh8 {[%clk 0:00:15]} 43. Rf7
{[%clk 0:00:35.2]} 43... Rb1+ {[%clk 0:00:13.7]} 44. Kg2 {[%clk 0:00:35.2]}
44... R1b3 {[%clk 0:00:13.2]} 45. Qf5 {[%clk 0:00:25.9]} 45... Kg8 {[%clk
0:00:13.6]} 46. Ra7 {[%clk 0:00:21.8]} 46... Rxa3 {[%clk 0:00:10.7]} 47. c4
{[%clk 0:00:22.2]} 47... Ra1 {[%clk 0:00:07.7]} 48. g4 {[%clk 0:00:20.5]} 48...
a3 {[%clk 0:00:07.6]} 49. g5 {[%clk 0:00:21.1]} 49... hxg5 {[%clk 0:00:08.5]}
50. h6 {[%clk 0:00:21.3]} 50... a2 {[%clk 0:00:05.9]} 51. Qg6 {[%clk 0:00:17.8]}
51... Rg1+ {[%clk 0:00:03.5]} 52. Kxg1 {[%clk 0:00:17.8]} 52... Rb1+ {[%clk
0:00:04.4]} 53. Kg2 {[%clk 0:00:17.7]} 53... a1=Q {[%clk 0:00:05.3]} 54. Rxa1
{[%clk 0:00:15.1]} 54... Rxa1 {[%clk 0:00:06.2]} 55. h7+ {[%clk 0:00:14.9]}
55... Kh8 {[%clk 0:00:06.7]} 56. Qe8 {[%clk 0:00:14.8]} 56... Kxh7 {[%clk
0:00:05.5]} 57. Qxf8 {[%clk 0:00:14.3]} 57... Rc1 {[%clk 0:00:06]} 58. Qxc5
{[%clk 0:00:10.8]} 58... Kh6 {[%clk 0:00:05.3]} 59. Qd6+ {[%clk 0:00:11]} 59...
g6 {[%clk 0:00:05.7]} 60. c5 {[%clk 0:00:11.1]} 60... Kh5 {[%clk 0:00:06]} 61.
f3 {[%clk 0:00:11.2]} 61... Rc2+ {[%clk 0:00:05.2]} 62. Kg3 {[%clk 0:00:10.1]}
62... Rc4 {[%clk 0:00:05.5]} 63. Qe5 {[%clk 0:00:05.8]} 63... Rg4+ {[%clk
0:00:01.6]} 64. fxg4+ {[%clk 0:00:05.3]} 64... Kh6 {[%clk 0:00:02.5]} 65. Qh8#
{[%clk 0:00:06.1]} 1-0